[Event "Titled Tuesday Blitz November 29 Late 2022"]
[White "Pham, Khoi"]
[Black "Kowalski, Igor"]
[WhiteFideId "1054988"]
[BlackFideId "1172468"]
[WhiteElo "2484"]
[BlackElo "2317"]
[Result "1/2-1/2"]
[Round "02"]
[TimeControl "180+1"]
[Date "2022.11.30"]
[WhiteClock "0:00:23"]
[BlackClock "0:00:16"]

1. e4 {[%clk 0:03:00]}  c6 {[%clk 0:02:59]} 2. Nf3 {[%clk 0:03:00]}  d5 {[%clk 0:03:00]} 3. Nc3 {[%clk 0:03:00]}  Bg4 {[%clk 0:02:59]} 4. h3 {[%clk 0:03:00]}  Bxf3 {[%clk 0:02:59]} 5. Qxf3 {[%clk 0:03:01]}  e6 {[%clk 0:03:00]} 6. Be2 {[%clk 0:03:01]}  Nd7 {[%clk 0:02:59]} 7. O-O {[%clk 0:03:00]}  Bd6 {[%clk 0:02:58]} 8. d4 {[%clk 0:02:59]}  Ne7 {[%clk 0:02:54]} 9. e5 {[%clk 0:02:52]}  Bc7 {[%clk 0:02:54]} 10. Be3 {[%clk 0:02:49]}  Nf5 {[%clk 0:02:53]} 11. Bd3 {[%clk 0:02:47]}  Nxe3 {[%clk 0:02:50]} 12. fxe3 {[%clk 0:02:47]}  O-O {[%clk 0:02:51]} 13. Ne2 {[%clk 0:02:43]}  f5 {[%clk 0:02:31]} 14. Nf4 {[%clk 0:02:39]}  Qe7 {[%clk 0:02:21]} 15. g4 {[%clk 0:02:35]}  g6 {[%clk 0:02:20]} 16. gxf5 {[%clk 0:02:33]}  gxf5 {[%clk 0:02:19]} 17. Kh2 {[%clk 0:02:34]}  Kh8 {[%clk 0:02:20]} 18. Rg1 {[%clk 0:02:34]}  Qf7 {[%clk 0:02:15]} 19. Rg3 {[%clk 0:02:25]}  Rg8 {[%clk 0:02:15]} 20. Rag1 {[%clk 0:02:25]}  Rxg3 {[%clk 0:02:15]} 21. Rxg3 {[%clk 0:02:26]}  Rg8 {[%clk 0:02:14]} 22. Qg2 {[%clk 0:02:21]}  Nf8 {[%clk 0:02:05]} 23. Be2 {[%clk 0:02:08]}  Rxg3 {[%clk 0:01:46]} 24. Qxg3 {[%clk 0:02:09]}  Bd8 {[%clk 0:01:44]} 25. Bh5 {[%clk 0:02:04]}  Qg7 {[%clk 0:01:44]} 26. Be2 {[%clk 0:01:38]}  Qh6 {[%clk 0:01:02]} 27. Kg2 {[%clk 0:01:07]}  Bh4 {[%clk 0:00:59]} 28. Qf3 {[%clk 0:01:07]}  Bg5 {[%clk 0:00:52]} 29. Qg3 {[%clk 0:00:58]}  Bxf4 {[%clk 0:00:42]} 30. Qxf4 {[%clk 0:00:52]}  Qg7+ {[%clk 0:00:39]} 31. Kf2 {[%clk 0:00:51]}  Ng6 {[%clk 0:00:37]} 32. Qg5 {[%clk 0:00:50]}  Qe7 {[%clk 0:00:37]} 33. Qxe7 {[%clk 0:00:30]}  Nxe7 {[%clk 0:00:37]} 34. Bh5 {[%clk 0:00:31]}  Kg7 {[%clk 0:00:37]} 35. Kf3 {[%clk 0:00:29]}  b6 {[%clk 0:00:22]} 36. Kf4 {[%clk 0:00:28]}  c5 {[%clk 0:00:22]} 37. c3 {[%clk 0:00:26]}  c4 {[%clk 0:00:20]} 38. b3 {[%clk 0:00:23]}  b5 {[%clk 0:00:14]} 39. Bd1 {[%clk 0:00:20]}  Ng6+ {[%clk 0:00:12]} 40. Kg3 {[%clk 0:00:20]}  Kh6 {[%clk 0:00:12]} 41. a4 {[%clk 0:00:19]}  a6 {[%clk 0:00:12]} 42. axb5 {[%clk 0:00:19]}  axb5 {[%clk 0:00:13]} 43. bxc4 {[%clk 0:00:19]}  dxc4 {[%clk 0:00:13]} 44. Bf3 {[%clk 0:00:19]}  Ne7 {[%clk 0:00:13]} 45. e4 {[%clk 0:00:18]}  Kg5 {[%clk 0:00:13]} 46. h4+ {[%clk 0:00:17]}  Kg6 {[%clk 0:00:13]} 47. exf5+ {[%clk 0:00:17]}  Kxf5 {[%clk 0:00:13]} 48. Bg4+ {[%clk 0:00:17]}  Ke4 {[%clk 0:00:13]} 49. Bxe6 {[%clk 0:00:18]}  b4 {[%clk 0:00:11]} 50. Bxc4 {[%clk 0:00:17]}  bxc3 {[%clk 0:00:11]} 51. Bb3 {[%clk 0:00:18]}  Kxd4 {[%clk 0:00:12]} 52. e6 {[%clk 0:00:18]}  Kd3 {[%clk 0:00:12]} 53. Kf4 {[%clk 0:00:18]}  c2 {[%clk 0:00:12]} 54. Bxc2+ {[%clk 0:00:18]}  Kxc2 {[%clk 0:00:13]} 55. Kg5 {[%clk 0:00:19]}  Kd3 {[%clk 0:00:13]} 56. Kh6 {[%clk 0:00:19]}  Ke4 {[%clk 0:00:13]} 57. Kxh7 {[%clk 0:00:20]}  Ke5 {[%clk 0:00:14]} 58. Kg7 {[%clk 0:00:21]}  Kxe6 {[%clk 0:00:15]} 59. h5 {[%clk 0:00:21]}  Ke5 {[%clk 0:00:15]} 60. h6 {[%clk 0:00:22]}  Nf5+ {[%clk 0:00:15]} 61. Kh7 {[%clk 0:00:23]}  Nxh6 {[%clk 0:00:16]} 1/2-1/2


[Site "https://www.chess.com"]

[Event "Titled Tuesday Blitz November 29 Late 2022"]
[White "Pinheiro, Iung Alicio de O."]
[Black "Bok, Benjamin"]
[WhiteFideId "2104350"]
[BlackFideId "1017063"]
[WhiteElo "2283"]
[BlackElo "2658"]
[Result "0-1"]
[Round "02"]
[TimeControl "180+1"]
[Date "2022.11.30"]
[WhiteClock "0:00:02"]
[BlackClock "0:00:04"]

1. e4 {[%clk 0:03:00]}  c5 {[%clk 0:02:59]} 2. Nf3 {[%clk 0:02:59]}  d6 {[%clk 0:02:59]} 3. Bc4 {[%clk 0:02:59]}  Nf6 {[%clk 0:02:59]} 4. d3 {[%clk 0:02:59]}  e6 {[%clk 0:02:59]} 5. O-O {[%clk 0:02:59]}  a6 {[%clk 0:03:00]} 6. Bb3 {[%clk 0:02:56]}  b5 {[%clk 0:02:59]} 7. c3 {[%clk 0:02:56]}  Bb7 {[%clk 0:02:59]} 8. Re1 {[%clk 0:02:56]}  Nbd7 {[%clk 0:03:00]} 9. Nbd2 {[%clk 0:02:56]}  Be7 {[%clk 0:02:57]} 10. d4 {[%clk 0:02:56]}  O-O {[%clk 0:02:56]} 11. Bc2 {[%clk 0:02:52]}  Qc7 {[%clk 0:02:56]} 12. Nf1 {[%clk 0:02:52]}  e5 {[%clk 0:02:54]} 13. Ng3 {[%clk 0:02:49]}  g6 {[%clk 0:02:54]} 14. Bh6 {[%clk 0:02:34]}  Rfe8 {[%clk 0:02:54]} 15. d5 {[%clk 0:02:32]}  c4 {[%clk 0:02:54]} 16. h3 {[%clk 0:02:18]}  a5 {[%clk 0:02:53]} 17. Qd2 {[%clk 0:02:12]}  Reb8 {[%clk 0:02:32]} 18. b4 {[%clk 0:02:00]}  axb4 {[%clk 0:02:18]} 19. cxb4 {[%clk 0:01:59]}  Ra3 {[%clk 0:02:18]} 20. Re3 {[%clk 0:01:41]}  Rba8 {[%clk 0:02:09]} 21. Rxa3 {[%clk 0:01:35]}  Rxa3 {[%clk 0:02:10]} 22. Qc1 {[%clk 0:01:35]}  Ra8 {[%clk 0:02:02]} 23. a3 {[%clk 0:01:25]}  Nb6 {[%clk 0:02:01]} 24. Be3 {[%clk 0:01:25]}  Bc8 {[%clk 0:01:49]} 25. Ne2 {[%clk 0:01:25]}  Bd7 {[%clk 0:01:16]} 26. Nc3 {[%clk 0:01:21]}  Nh5 {[%clk 0:01:11]} 27. Kh2 {[%clk 0:01:15]}  Bf6 {[%clk 0:01:07]} 28. Ra2 {[%clk 0:01:03]}  Bg7 {[%clk 0:01:04]} 29. Qd1 {[%clk 0:00:52]}  Nf4 {[%clk 0:00:55]} 30. Ng1 {[%clk 0:00:46]}  f5 {[%clk 0:00:32]} 31. g3 {[%clk 0:00:41]}  Nd3 {[%clk 0:00:12]} 32. Bxd3 {[%clk 0:00:32]}  cxd3 {[%clk 0:00:13]} 33. Qxd3 {[%clk 0:00:33]}  fxe4 {[%clk 0:00:12]} 34. Nxe4 {[%clk 0:00:31]}  Qc4 {[%clk 0:00:12]} 35. Rd2 {[%clk 0:00:22]}  Qxd3 {[%clk 0:00:11]} 36. Rxd3 {[%clk 0:00:23]}  Nc4 {[%clk 0:00:12]} 37. Bc1 {[%clk 0:00:23]}  Kf7 {[%clk 0:00:07]} 38. Kg2 {[%clk 0:00:21]}  h6 {[%clk 0:00:07]} 39. f3 {[%clk 0:00:18]}  Rc8 {[%clk 0:00:07]} 40. Ne2 {[%clk 0:00:18]}  Ke7 {[%clk 0:00:07]} 41. Kf2 {[%clk 0:00:17]}  Nb6 {[%clk 0:00:06]} 42. N2c3 {[%clk 0:00:14]}  Be8 {[%clk 0:00:04]} 43. Be3 {[%clk 0:00:12]}  Nc4 {[%clk 0:00:04]} 44. Bc1 {[%clk 0:00:12]}  Ra8 {[%clk 0:00:05]} 45. Nb1 {[%clk 0:00:08]}  Kd7 {[%clk 0:00:04]} 46. Nbd2 {[%clk 0:00:08]}  Nb6 {[%clk 0:00:03]} 47. Nb3 {[%clk 0:00:07]}  Bf7 {[%clk 0:00:04]} 48. Nc3 {[%clk 0:00:06]}  Nc4 {[%clk 0:00:04]} 49. Nb1 {[%clk 0:00:04]}  Rc8 {[%clk 0:00:04]} 50. Bd2 {[%clk 0:00:02]}  Nb6 {[%clk 0:00:04]} 0-1


[Site "https://www.chess.com"]

[Event "Titled Tuesday Blitz November 29 Late 2022"]
[White "Preotu, Razvan"]
[Black "Gasparyan, David"]
[WhiteFideId "2613280"]
[BlackFideId "13311980"]
[WhiteElo "2407"]
[BlackElo "2340"]
[Result "0-1"]
[Round "02"]
[TimeControl "180+1"]
[Date "2022.11.30"]
[WhiteClock "0:01:07"]
[BlackClock "0:00:49"]

1. e4 {[%clk 0:02:54]}  c5 {[%clk 0:02:56]} 2. Nf3 {[%clk 0:02:54]}  Nc6 {[%clk 0:02:44]} 3. Bb5 {[%clk 0:02:53]}  Qc7 {[%clk 0:02:37]} 4. O-O {[%clk 0:02:49]}  g6 {[%clk 0:02:37]} 5. c3 {[%clk 0:02:42]}  Bg7 {[%clk 0:02:37]} 6. d4 {[%clk 0:02:42]}  cxd4 {[%clk 0:02:22]} 7. cxd4 {[%clk 0:02:43]}  Nf6 {[%clk 0:02:14]} 8. Nc3 {[%clk 0:02:41]}  O-O {[%clk 0:02:12]} 9. e5 {[%clk 0:02:37]}  Ne8 {[%clk 0:02:09]} 10. Nd5 {[%clk 0:02:10]}  Qd8 {[%clk 0:02:04]} 11. Bg5 {[%clk 0:02:10]}  f6 {[%clk 0:02:02]} 12. Bh4 {[%clk 0:02:04]}  e6 {[%clk 0:01:51]} 13. exf6 {[%clk 0:02:02]}  Nxf6 {[%clk 0:01:50]} 14. Nxf6+ {[%clk 0:01:55]}  Bxf6 {[%clk 0:01:51]} 15. Bxf6 {[%clk 0:01:49]}  Qxf6 {[%clk 0:01:51]} 16. Rc1 {[%clk 0:01:41]}  Ne7 {[%clk 0:01:44]} 17. Ne5 {[%clk 0:01:36]}  Nd5 {[%clk 0:01:38]} 18. Bxd7 {[%clk 0:01:31]}  Nf4 {[%clk 0:01:30]} 19. Qf3 {[%clk 0:01:17]}  Qg5 {[%clk 0:00:57]} 20. Rfe1 {[%clk 0:01:14]}  Bxd7 {[%clk 0:00:54]} 21. Nxd7 {[%clk 0:01:14]}  Rf7 {[%clk 0:00:54]} 22. Ne5 {[%clk 0:01:12]}  Rf5 {[%clk 0:00:50]} 23. Qg3 {[%clk 0:01:07]}  Ne2+ {[%clk 0:00:49]} 0-1


[Site "https://www.chess.com"]

[Event "Titled Tuesday Blitz November 29 Late 2022"]
[White "Pruess, David"]
[Black "Joubert, Dantelle"]
[WhiteFideId "2014254"]
[BlackFideId "14310813"]
[WhiteElo "2447"]
[BlackElo "1507"]
[Result "1-0"]
[Round "02"]
[TimeControl "180+1"]
[Date "2022.11.30"]
[WhiteClock "0:00:11"]
[BlackClock "0:00:05"]

1. e4 {[%clk 0:03:00]}  e5 {[%clk 0:02:55]} 2. Nf3 {[%clk 0:02:59]}  Nc6 {[%clk 0:02:54]} 3. Bb5 {[%clk 0:02:59]}  Nf6 {[%clk 0:02:54]} 4. O-O {[%clk 0:02:53]}  Nxe4 {[%clk 0:02:53]} 5. d4 {[%clk 0:02:54]}  Nd6 {[%clk 0:02:52]} 6. Bxc6 {[%clk 0:02:54]}  dxc6 {[%clk 0:02:52]} 7. dxe5 {[%clk 0:02:55]}  Nf5 {[%clk 0:02:52]} 8. Qxd8+ {[%clk 0:02:55]}  Kxd8 {[%clk 0:02:52]} 9. Nc3 {[%clk 0:02:55]}  Ke8 {[%clk 0:02:49]} 10. b3 {[%clk 0:02:45]}  Be6 {[%clk 0:02:44]} 11. Bb2 {[%clk 0:02:44]}  h6 {[%clk 0:02:43]} 12. Rfe1 {[%clk 0:02:35]}  Be7 {[%clk 0:02:37]} 13. Ne4 {[%clk 0:02:30]}  b6 {[%clk 0:02:33]} 14. h3 {[%clk 0:02:10]}  a5 {[%clk 0:02:23]} 15. g4 {[%clk 0:02:02]}  Nh4 {[%clk 0:02:17]} 16. Nd4 {[%clk 0:02:01]}  Bd5 {[%clk 0:02:03]} 17. Nf6+ {[%clk 0:01:35]}  Kf8 {[%clk 0:01:34]} 18. Nxd5 {[%clk 0:01:15]}  cxd5 {[%clk 0:01:32]} 19. e6 {[%clk 0:00:45]}  c5 {[%clk 0:01:20]} 20. Nf5 {[%clk 0:00:45]}  Nf3+ {[%clk 0:01:19]} 21. Kf1 {[%clk 0:00:34]}  d4 {[%clk 0:00:46]} 22. Re2 {[%clk 0:00:20]}  fxe6 {[%clk 0:00:37]} 23. Rxe6 {[%clk 0:00:20]}  Bf6 {[%clk 0:00:37]} 24. Rxb6 {[%clk 0:00:19]}  c4 {[%clk 0:00:28]} 25. bxc4 {[%clk 0:00:18]}  Nd2+ {[%clk 0:00:28]} 26. Kg2 {[%clk 0:00:18]}  Nxc4 {[%clk 0:00:28]} 27. Rb7 {[%clk 0:00:17]}  Nxb2 {[%clk 0:00:27]} 28. Rxb2 {[%clk 0:00:17]}  d3 {[%clk 0:00:27]} 29. Rab1 {[%clk 0:00:16]}  Bxb2 {[%clk 0:00:27]} 30. Rxb2 {[%clk 0:00:16]}  d2 {[%clk 0:00:27]} 31. Rb1 {[%clk 0:00:16]}  Rd8 {[%clk 0:00:22]} 32. Ne3 {[%clk 0:00:15]}  Kf7 {[%clk 0:00:21]} 33. Kf3 {[%clk 0:00:13]}  Rhe8 {[%clk 0:00:20]} 34. Ke2 {[%clk 0:00:13]}  Re4 {[%clk 0:00:17]} 35. Rd1 {[%clk 0:00:13]}  Red4 {[%clk 0:00:16]} 36. f3 {[%clk 0:00:11]}  g5 {[%clk 0:00:15]} 37. Nf5 {[%clk 0:00:11]}  Re8+ {[%clk 0:00:12]} 38. Kf2 {[%clk 0:00:10]}  Rd5 {[%clk 0:00:11]} 39. Nxh6+ {[%clk 0:00:10]}  Kg6 {[%clk 0:00:11]} 40. Nf5 {[%clk 0:00:10]}  Rc8 {[%clk 0:00:08]} 41. Ke2 {[%clk 0:00:08]}  Re8+ {[%clk 0:00:06]} 42. Kf2 {[%clk 0:00:08]}  Re6 {[%clk 0:00:06]} 43. Ng3 {[%clk 0:00:07]}  Rc6 {[%clk 0:00:05]} 44. Ne4 {[%clk 0:00:05]}  Rxc2 {[%clk 0:00:06]} 45. a3 {[%clk 0:00:05]}  Ra2 {[%clk 0:00:06]} 46. Nc3 {[%clk 0:00:05]}  Rxa3 {[%clk 0:00:04]} 47. Nxd5 {[%clk 0:00:05]}  Ra2 {[%clk 0:00:04]} 48. Ne3 {[%clk 0:00:05]}  Rc2 {[%clk 0:00:04]} 49. Nxc2 {[%clk 0:00:04]}  Kf6 {[%clk 0:00:04]} 50. Rxd2 {[%clk 0:00:04]}  Ke5 {[%clk 0:00:04]} 51. Ke3 {[%clk 0:00:05]}  Ke6 {[%clk 0:00:04]} 52. Na3 {[%clk 0:00:05]}  Kf6 {[%clk 0:00:04]} 53. Nc4 {[%clk 0:00:06]}  Ke6 {[%clk 0:00:04]} 54. Rd6+ {[%clk 0:00:06]}  Ke7 {[%clk 0:00:05]} 55. Ra6 {[%clk 0:00:07]}  Kd7 {[%clk 0:00:05]} 56. Rxa5 {[%clk 0:00:07]}  Kc7 {[%clk 0:00:05]} 57. Rxg5 {[%clk 0:00:08]}  Kc6 {[%clk 0:00:05]} 58. h4 {[%clk 0:00:09]}  Kd7 {[%clk 0:00:04]} 59. h5 {[%clk 0:00:10]}  Ke6 {[%clk 0:00:04]} 60. Rf5 {[%clk 0:00:10]}  Ke7 {[%clk 0:00:04]} 61. Nd2 {[%clk 0:00:10]}  Ke6 {[%clk 0:00:05]} 62. Nf1 {[%clk 0:00:11]} 1-0


[Site "https://www.chess.com"]

[Event "Titled Tuesday Blitz November 29 Late 2022"]
[White "Rangel, Daniel"]
[Black "Arbunic Castro, Giovanna"]
[WhiteFideId "2124475"]
[BlackFideId "3400549"]
[WhiteElo "2225"]
[BlackElo "1933"]
[Result "1-0"]
[Round "02"]
[TimeControl "180+1"]
[Date "2022.11.30"]
[WhiteClock "0:01:47"]
[BlackClock "0:00:27"]

1. d4 {[%clk 0:03:00]}  Nf6 {[%clk 0:02:58]} 2. c4 {[%clk 0:03:01]}  g6 {[%clk 0:02:57]} 3. Nc3 {[%clk 0:03:00]}  Bg7 {[%clk 0:02:57]} 4. e4 {[%clk 0:03:00]}  d6 {[%clk 0:02:56]} 5. Nf3 {[%clk 0:03:00]}  O-O {[%clk 0:02:55]} 6. Be2 {[%clk 0:03:01]}  c5 {[%clk 0:02:53]} 7. d5 {[%clk 0:03:00]}  e6 {[%clk 0:02:52]} 8. h3 {[%clk 0:02:59]}  exd5 {[%clk 0:02:50]} 9. exd5 {[%clk 0:03:00]}  Re8 {[%clk 0:02:50]} 10. O-O {[%clk 0:03:01]}  Ne4 {[%clk 0:02:48]} 11. Nxe4 {[%clk 0:02:51]}  Rxe4 {[%clk 0:02:47]} 12. Bd3 {[%clk 0:02:51]}  Re8 {[%clk 0:02:45]} 13. Bg5 {[%clk 0:02:50]}  Qb6 {[%clk 0:02:44]} 14. Rb1 {[%clk 0:02:48]}  Nd7 {[%clk 0:02:35]} 15. Qd2 {[%clk 0:02:33]}  Ne5 {[%clk 0:02:32]} 16. Nxe5 {[%clk 0:02:33]}  Bxe5 {[%clk 0:02:26]} 17. f4 {[%clk 0:02:30]}  Bd4+ {[%clk 0:02:24]} 18. Kh1 {[%clk 0:02:30]}  Be3 {[%clk 0:02:02]} 19. Qc2 {[%clk 0:02:29]}  Bd7 {[%clk 0:02:00]} 20. f5 {[%clk 0:02:17]}  Bxg5 {[%clk 0:01:57]} 21. fxg6 {[%clk 0:02:18]}  Rf8 {[%clk 0:01:13]} 22. gxf7+ {[%clk 0:01:53]}  Rxf7 {[%clk 0:00:58]} 23. Rxf7 {[%clk 0:01:54]}  Kxf7 {[%clk 0:00:57]} 24. Bxh7 {[%clk 0:01:55]}  Qd8 {[%clk 0:00:37]} 25. Qg6+ {[%clk 0:01:52]}  Kf8 {[%clk 0:00:31]} 26. Qg8+ {[%clk 0:01:49]}  Ke7 {[%clk 0:00:29]} 27. Re1+ {[%clk 0:01:50]}  Be6 {[%clk 0:00:27]} 28. Qxe6+ {[%clk 0:01:47]} 1-0


[Site "https://www.chess.com"]

[Event "Titled Tuesday Blitz November 29 Late 2022"]
[White "Reprintsev, Alexander"]
[Black "Gerbelli Neto, Eduardo"]
[WhiteFideId "14100541"]
[BlackFideId "2103281"]
[WhiteElo "2230"]
[BlackElo "2178"]
[Result "0-1"]
[Round "02"]
[TimeControl "180+1"]
[Date "2022.11.30"]
[WhiteClock "0:01:17"]
[BlackClock "0:01:47"]

1. e4 {[%clk 0:03:00]}  e5 {[%clk 0:02:54]} 2. f4 {[%clk 0:03:00]}  Nc6 {[%clk 0:02:54]} 3. Nf3 {[%clk 0:02:59]}  f5 {[%clk 0:02:54]} 4. exf5 {[%clk 0:02:55]}  e4 {[%clk 0:02:55]} 5. Ne5 {[%clk 0:02:51]}  Nxe5 {[%clk 0:02:54]} 6. fxe5 {[%clk 0:02:51]}  Qe7 {[%clk 0:02:55]} 7. Qh5+ {[%clk 0:02:46]}  Kd8 {[%clk 0:02:54]} 8. d4 {[%clk 0:02:45]}  exd3 {[%clk 0:02:54]} 9. Bg5 {[%clk 0:02:44]}  Nf6 {[%clk 0:02:54]} 10. Bxf6 {[%clk 0:02:23]}  gxf6 {[%clk 0:02:54]} 11. e6 {[%clk 0:02:23]}  Qb4+ {[%clk 0:02:44]} 12. Nd2 {[%clk 0:02:19]}  Qxb2 {[%clk 0:02:39]} 13. Rb1 {[%clk 0:02:18]}  dxc2 {[%clk 0:02:36]} 14. Rxb2 {[%clk 0:02:17]}  c1=Q+ {[%clk 0:02:36]} 15. Ke2 {[%clk 0:01:51]}  Qxb2 {[%clk 0:02:37]} 16. g4 {[%clk 0:01:43]}  Qe5+ {[%clk 0:02:28]} 17. Kf2 {[%clk 0:01:39]}  Qd4+ {[%clk 0:02:27]} 18. Ke1 {[%clk 0:01:38]}  dxe6 {[%clk 0:02:18]} 19. Nf3 {[%clk 0:01:27]}  Bb4+ {[%clk 0:02:14]} 20. Ke2 {[%clk 0:01:27]}  Qe4+ {[%clk 0:02:11]} 21. Kf2 {[%clk 0:01:28]}  Bc5+ {[%clk 0:02:10]} 22. Kg2 {[%clk 0:01:27]}  exf5 {[%clk 0:02:06]} 23. g5 {[%clk 0:01:21]}  Qg4+ {[%clk 0:01:58]} 24. Qxg4 {[%clk 0:01:19]}  fxg4 {[%clk 0:01:59]} 25. Nd2 {[%clk 0:01:17]}  Bd7 {[%clk 0:01:47]} 0-1


[Site "https://www.chess.com"]

[Event "Titled Tuesday Blitz November 29 Late 2022"]
[White "Sanchez, Robert"]
[Black "Bayo Milagro, Alvaro"]
[WhiteFideId "2034360"]
[BlackFideId "22275240"]
[WhiteElo "2326"]
[BlackElo "2270"]
[Result "0-1"]
[Round "02"]
[TimeControl "180+1"]
[Date "2022.11.30"]
[WhiteClock "0:00:33"]
[BlackClock "0:01:02"]

1. e4 {[%clk 0:03:00]}  d6 {[%clk 0:02:56]} 2. d4 {[%clk 0:03:00]}  Nf6 {[%clk 0:02:56]} 3. Nc3 {[%clk 0:03:01]}  e5 {[%clk 0:02:56]} 4. Nf3 {[%clk 0:03:00]}  Nbd7 {[%clk 0:02:56]} 5. Bc4 {[%clk 0:02:59]}  Be7 {[%clk 0:02:56]} 6. O-O {[%clk 0:02:58]}  O-O {[%clk 0:02:56]} 7. a4 {[%clk 0:02:59]}  c6 {[%clk 0:02:55]} 8. h3 {[%clk 0:02:58]}  b6 {[%clk 0:02:52]} 9. dxe5 {[%clk 0:02:51]}  dxe5 {[%clk 0:02:52]} 10. Qe2 {[%clk 0:02:50]}  Qc7 {[%clk 0:02:51]} 11. Rd1 {[%clk 0:02:50]}  Nc5 {[%clk 0:02:46]} 12. Bg5 {[%clk 0:02:41]}  h6 {[%clk 0:02:45]} 13. Bh4 {[%clk 0:02:39]}  Nh5 {[%clk 0:02:42]} 14. Bg3 {[%clk 0:02:24]}  Nxg3 {[%clk 0:02:41]} 15. fxg3 {[%clk 0:02:24]}  Be6 {[%clk 0:02:40]} 16. b4 {[%clk 0:02:16]}  Bxc4 {[%clk 0:02:36]} 17. Qxc4 {[%clk 0:02:17]}  Ne6 {[%clk 0:02:37]} 18. Rd3 {[%clk 0:01:59]}  a5 {[%clk 0:02:30]} 19. b5 {[%clk 0:01:56]}  Bc5+ {[%clk 0:02:20]} 20. Kh2 {[%clk 0:01:55]}  Bd4 {[%clk 0:02:20]} 21. Nxd4 {[%clk 0:01:51]}  exd4 {[%clk 0:02:18]} 22. Ne2 {[%clk 0:01:48]}  c5 {[%clk 0:02:12]} 23. c3 {[%clk 0:01:46]}  dxc3 {[%clk 0:02:08]} 24. Nxc3 {[%clk 0:01:35]}  Rad8 {[%clk 0:02:06]} 25. Nd5 {[%clk 0:01:33]}  Qe5 {[%clk 0:02:06]} 26. Rf1 {[%clk 0:01:25]}  Ng5 {[%clk 0:02:03]} 27. Rfd1 {[%clk 0:01:08]}  Nxe4 {[%clk 0:01:57]} 28. Nf6+ {[%clk 0:01:03]}  Qxf6 {[%clk 0:01:47]} 29. Qxe4 {[%clk 0:01:03]}  Rxd3 {[%clk 0:01:46]} 30. Rxd3 {[%clk 0:01:04]}  Rd8 {[%clk 0:01:44]} 31. Rf3 {[%clk 0:01:00]}  Qe6 {[%clk 0:01:39]} 32. Qb7 {[%clk 0:00:58]}  g6 {[%clk 0:01:12]} 33. h4 {[%clk 0:00:56]}  Rd7 {[%clk 0:01:11]} 34. Qb8+ {[%clk 0:00:49]}  Kg7 {[%clk 0:01:10]} 35. h5 {[%clk 0:00:49]}  g5 {[%clk 0:01:07]} 36. g4 {[%clk 0:00:33]}  Qd6+ {[%clk 0:01:01]} 37. Qxd6 {[%clk 0:00:33]}  Rxd6 {[%clk 0:01:02]} 0-1


[Site "https://www.chess.com"]

[Event "Titled Tuesday Blitz November 29 Late 2022"]
[White "Santos Flores, Alberto"]
[Black "Hartikainen, Jarmo"]
[WhiteFideId "3601234"]
[BlackFideId "503134"]
[WhiteElo "2235"]
[BlackElo "2204"]
[Result "1-0"]
[Round "02"]
[TimeControl "180+1"]
[Date "2022.11.30"]
[WhiteClock "0:01:12"]
[BlackClock "0:00:19"]

1. d4 {[%clk 0:03:00]}  Nf6 {[%clk 0:02:59]} 2. Nf3 {[%clk 0:02:59]}  g6 {[%clk 0:02:59]} 3. Bf4 {[%clk 0:02:57]}  Bg7 {[%clk 0:02:57]} 4. e3 {[%clk 0:02:56]}  d5 {[%clk 0:02:54]} 5. Bd3 {[%clk 0:02:51]}  Nbd7 {[%clk 0:02:45]} 6. h3 {[%clk 0:02:50]}  O-O {[%clk 0:02:43]} 7. Nbd2 {[%clk 0:02:48]}  c5 {[%clk 0:02:38]} 8. c3 {[%clk 0:02:47]}  b6 {[%clk 0:02:35]} 9. Ne5 {[%clk 0:02:41]}  Bb7 {[%clk 0:02:34]} 10. h4 {[%clk 0:02:22]}  Nxe5 {[%clk 0:02:07]} 11. Bxe5 {[%clk 0:02:20]}  Qd7 {[%clk 0:01:53]} 12. h5 {[%clk 0:02:17]}  Qg4 {[%clk 0:01:46]} 13. Nf3 {[%clk 0:01:39]}  Nxh5 {[%clk 0:01:16]} 14. Bxg7 {[%clk 0:01:36]}  Kxg7 {[%clk 0:00:55]} 15. Rh4 {[%clk 0:01:23]}  Qxg2 {[%clk 0:00:53]} 16. Qe2 {[%clk 0:01:22]}  e5 {[%clk 0:00:47]} 17. dxe5 {[%clk 0:01:20]}  d4 {[%clk 0:00:45]} 18. e4 {[%clk 0:01:16]}  dxc3 {[%clk 0:00:45]} 19. O-O-O {[%clk 0:01:14]}  cxb2+ {[%clk 0:00:44]} 20. Kxb2 {[%clk 0:01:14]}  Kh8 {[%clk 0:00:19]} 21. Rg1 {[%clk 0:01:12]} 1-0


[Site "https://www.chess.com"]

[Event "Titled Tuesday Blitz November 29 Late 2022"]
[White "Stearman, Josiah"]
[Black "Arnold, Ken"]
[WhiteFideId "2062496"]
[BlackFideId "2056836"]
[WhiteElo "2402"]
[BlackElo "2370"]
[Result "1-0"]
[Round "02"]
[TimeControl "180+1"]
[Date "2022.11.30"]
[WhiteClock "0:00:03"]
[BlackClock "0:00:01"]

1. e4 {[%clk 0:03:00]}  c6 {[%clk 0:02:59]} 2. d4 {[%clk 0:02:56]}  d5 {[%clk 0:02:59]} 3. e5 {[%clk 0:02:56]}  Bf5 {[%clk 0:02:58]} 4. h4 {[%clk 0:02:56]}  h5 {[%clk 0:02:58]} 5. c4 {[%clk 0:02:55]}  e6 {[%clk 0:02:57]} 6. Nf3 {[%clk 0:02:54]}  Ne7 {[%clk 0:02:54]} 7. cxd5 {[%clk 0:02:54]}  Nxd5 {[%clk 0:02:46]} 8. Nc3 {[%clk 0:02:52]}  Nd7 {[%clk 0:02:44]} 9. Bd3 {[%clk 0:02:51]}  Bg4 {[%clk 0:02:38]} 10. Ne4 {[%clk 0:02:45]}  Qb6 {[%clk 0:02:33]} 11. Bc2 {[%clk 0:02:26]}  Bb4+ {[%clk 0:02:23]} 12. Bd2 {[%clk 0:02:24]}  Be7 {[%clk 0:02:21]} 13. Bc3 {[%clk 0:02:21]}  Rc8 {[%clk 0:02:13]} 14. Qd2 {[%clk 0:02:04]}  Nxc3 {[%clk 0:02:08]} 15. bxc3 {[%clk 0:02:03]}  c5 {[%clk 0:02:05]} 16. Rb1 {[%clk 0:01:59]}  Qc7 {[%clk 0:01:49]} 17. Ba4 {[%clk 0:01:54]}  O-O {[%clk 0:01:44]} 18. Bxd7 {[%clk 0:01:37]}  Qxd7 {[%clk 0:01:42]} 19. dxc5 {[%clk 0:01:37]}  Qxd2+ {[%clk 0:01:32]} 20. Nfxd2 {[%clk 0:01:36]}  Bxc5 {[%clk 0:01:26]} 21. Rxb7 {[%clk 0:01:35]}  Rfd8 {[%clk 0:00:54]} 22. f3 {[%clk 0:01:05]}  Bf5 {[%clk 0:00:50]} 23. Ke2 {[%clk 0:01:05]}  Bb6 {[%clk 0:00:41]} 24. Rc1 {[%clk 0:00:44]}  Rd5 {[%clk 0:00:35]} 25. f4 {[%clk 0:00:31]}  Ra5 {[%clk 0:00:35]} 26. Nd6 {[%clk 0:00:25]}  Rc7 {[%clk 0:00:21]} 27. Rxc7 {[%clk 0:00:21]}  Bxc7 {[%clk 0:00:20]} 28. Nxf5 {[%clk 0:00:21]}  exf5 {[%clk 0:00:20]} 29. Rc2 {[%clk 0:00:21]}  f6 {[%clk 0:00:19]} 30. exf6 {[%clk 0:00:17]}  Bxf4 {[%clk 0:00:17]} 31. fxg7 {[%clk 0:00:17]}  Kxg7 {[%clk 0:00:17]} 32. Rb2 {[%clk 0:00:13]}  Rc5 {[%clk 0:00:15]} 33. Kd3 {[%clk 0:00:07]}  Bc7 {[%clk 0:00:13]} 34. Nf3 {[%clk 0:00:06]}  Kf6 {[%clk 0:00:13]} 35. c4 {[%clk 0:00:06]}  Bb6 {[%clk 0:00:12]} 36. Rb5 {[%clk 0:00:06]}  Rc7 {[%clk 0:00:11]} 37. Rd5 {[%clk 0:00:05]}  Re7 {[%clk 0:00:10]} 38. Rd6+ {[%clk 0:00:05]}  Kg7 {[%clk 0:00:10]} 39. Ng5 {[%clk 0:00:05]}  Re3+ {[%clk 0:00:09]} 40. Kd2 {[%clk 0:00:06]}  Rg3 {[%clk 0:00:09]} 41. Kc2 {[%clk 0:00:05]}  Rxg2+ {[%clk 0:00:09]} 42. Kb3 {[%clk 0:00:05]}  Rg4 {[%clk 0:00:09]} 43. Ne6+ {[%clk 0:00:05]}  Kf7 {[%clk 0:00:08]} 44. c5 {[%clk 0:00:06]}  Ba5 {[%clk 0:00:06]} 45. Ng5+ {[%clk 0:00:06]}  Ke7 {[%clk 0:00:06]} 46. Re6+ {[%clk 0:00:06]}  Kd7 {[%clk 0:00:06]} 47. Rg6 {[%clk 0:00:07]}  Rxh4 {[%clk 0:00:05]} 48. c6+ {[%clk 0:00:07]}  Kc7 {[%clk 0:00:05]} 49. Nf7 {[%clk 0:00:06]}  Rb4+ {[%clk 0:00:04]} 50. Ka3 {[%clk 0:00:07]}  Rc4 {[%clk 0:00:03]} 51. Ne5 {[%clk 0:00:07]}  Rc3+ {[%clk 0:00:01]} 52. Ka4 {[%clk 0:00:07]}  Bb6 {[%clk 0:00:01]} 53. Rg7+ {[%clk 0:00:03]} 1-0


[Site "https://www.chess.com"]